[Event "*** SCC Grand Prix: Titled Tuesday Blitz"]
[Site "Chess.com"]
[Date "2020.10.13"]
[Round "8"]
[White "wanyaland"]
[Black "pastouche06"]
[Result "0-1"]
[WhiteElo "2290"]
[BlackElo "2470"]
[TimeControl "180+1"]
[EndTime "11:34:15 PDT"]
[Termination "pastouche06 won by resignation"]

1. d4 {[%clk 0:03:00.1]} 1... d5 {[%clk 0:02:58.4]} 2. c4 {[%clk 0:03:00]} 2...
e6 {[%clk 0:02:58.2]} 3. Nc3 {[%clk 0:02:49]} 3... a6 {[%clk 0:02:56.7]} 4. Nf3
{[%clk 0:02:49.9]} 4... dxc4 {[%clk 0:02:54.2]} 5. a4 {[%clk 0:02:49.3]} 5...
Nc6 {[%clk 0:02:51]} 6. e3 {[%clk 0:02:48.6]} 6... Na5 {[%clk 0:02:50.6]} 7. Nd2
{[%clk 0:02:47.2]} 7... c5 {[%clk 0:02:46.3]} 8. dxc5 {[%clk 0:02:43]} 8... Bxc5
{[%clk 0:02:43.2]} 9. Nxc4 {[%clk 0:02:41.7]} 9... Qxd1+ {[%clk 0:02:40.8]} 10.
Kxd1 {[%clk 0:02:40.8]} 10... Nb3 {[%clk 0:02:37.9]} 11. Rb1 {[%clk 0:02:39.9]}
11... Nf6 {[%clk 0:02:35.2]} 12. Kc2 {[%clk 0:02:39.5]} 12... Nxc1 {[%clk
0:02:34.8]} 13. Rxc1 {[%clk 0:02:40.1]} 13... Bd7 {[%clk 0:02:30.1]} 14. Be2
{[%clk 0:02:38.8]} 14... Rc8 {[%clk 0:02:28.3]} 15. Ne5 {[%clk 0:02:35.8]} 15...
Bb4 {[%clk 0:02:11.4]} 16. Kb3 {[%clk 0:02:33.4]} 16... Bxc3 {[%clk 0:02:07.3]}
17. bxc3 {[%clk 0:02:33.8]} 17... Bc6 {[%clk 0:02:02.9]} 18. Nxc6 {[%clk
0:02:29.2]} 18... Rxc6 {[%clk 0:02:03.8]} 19. a5 {[%clk 0:02:29.5]} 19... Rc5
{[%clk 0:02:00.6]} 20. Kb4 {[%clk 0:02:27.2]} 20... Rg5 {[%clk 0:01:59.6]} 21.
Bf3 {[%clk 0:02:26.4]} 21... Ke7 {[%clk 0:01:52.3]} 22. Ka4 {[%clk 0:02:21.6]}
22... Nd7 {[%clk 0:01:35.9]} 23. Kb4 {[%clk 0:02:10.3]} 23... Rc8 {[%clk
0:01:31.2]} 24. c4 {[%clk 0:02:08.3]} 24... b6 {[%clk 0:01:21.7]} 25. axb6
{[%clk 0:02:05.1]} 25... a5+ {[%clk 0:01:20.8]} 26. Ka3 {[%clk 0:01:57.3]} 26...
Nxb6 {[%clk 0:01:21.7]} 27. c5 {[%clk 0:01:50.5]} 27... Rgxc5 {[%clk 0:01:20.8]}
28. Rxc5 {[%clk 0:01:49]} 28... Rxc5 {[%clk 0:01:21.7]} 29. Rb1 {[%clk
0:01:48.6]} 29... Nc4+ {[%clk 0:01:14.6]} 30. Ka4 {[%clk 0:01:45.6]} 30... Nd6
{[%clk 0:01:14.9]} 31. Rb2 {[%clk 0:01:39.6]} 31... Rc1 {[%clk 0:01:00.5]} 32.
Be2 {[%clk 0:01:31.5]} 32... Ra1+ {[%clk 0:00:57.7]} 33. Kb3 {[%clk 0:01:31.6]}
33... a4+ {[%clk 0:00:57.4]} 34. Kb4 {[%clk 0:01:28.4]} 34... a3 {[%clk
0:00:55.2]} 35. Rc2 {[%clk 0:01:28]} 35... a2 {[%clk 0:00:51]} 36. Ka3 {[%clk
0:01:27.9]} 36... Rg1 {[%clk 0:00:50]} 37. Kxa2 {[%clk 0:01:25.4]} 37... Rxg2
{[%clk 0:00:49.5]} 38. Bf3 {[%clk 0:01:18.2]} 38... Rxh2 {[%clk 0:00:48.2]} 39.
Kb3 {[%clk 0:01:17.3]} 39... h5 {[%clk 0:00:44.5]} 40. Kb4 {[%clk 0:01:17.1]}
40... h4 {[%clk 0:00:44.3]} 41. Kc5 {[%clk 0:01:15.3]} 41... Nf5 {[%clk
0:00:44.3]} 42. Ra2 {[%clk 0:01:09.2]} 42... Kf6 {[%clk 0:00:43.1]} 43. e4
{[%clk 0:01:03.4]} 43... Ne7 {[%clk 0:00:38.1]} 44. Kd6 {[%clk 0:01:02.1]} 44...
Ng6 {[%clk 0:00:36.1]} 45. Bg4 {[%clk 0:00:44.8]} 45... e5 {[%clk 0:00:27.5]}
46. Kd7 {[%clk 0:00:39]} 46... Nf4 {[%clk 0:00:24.5]} 47. Bf5 {[%clk 0:00:31.1]}
47... Nd3 {[%clk 0:00:18.3]} 48. Ra6+ {[%clk 0:00:27.4]} 48... Kg5 {[%clk
0:00:18.8]} 49. f3 {[%clk 0:00:27.7]} 49... Nc5+ {[%clk 0:00:18.6]} 50. Ke7
{[%clk 0:00:25.1]} 50... Nxa6 {[%clk 0:00:19.5]} 51. Kxf7 {[%clk 0:00:25.1]}
51... h3 {[%clk 0:00:17]} 0-1

[Event "*** SCC Grand Prix: Titled Tuesday Blitz"]
[Site "Chess.com"]
[Date "2020.10.13"]
[Round "8"]
[White "chessfrendz"]
[Black "blitzking1729"]
[Result "0-1"]
[WhiteElo "2389"]
[BlackElo "2552"]
[TimeControl "180+1"]
[EndTime "11:34:16 PDT"]
[Termination "blitzking1729 won on time"]

1. d4 {[%clk 0:03:00.9]} 1... d6 {[%clk 0:02:57.9]} 2. Nf3 {[%clk 0:02:59.5]}
2... Nf6 {[%clk 0:02:57.4]} 3. Nc3 {[%clk 0:02:58.2]} 3... g6 {[%clk 0:02:57.3]}
4. e4 {[%clk 0:02:57.4]} 4... Bg7 {[%clk 0:02:57.3]} 5. Be2 {[%clk 0:02:56.1]}
5... O-O {[%clk 0:02:57.5]} 6. O-O {[%clk 0:02:55.7]} 6... c6 {[%clk 0:02:55.7]}
7. a4 {[%clk 0:02:54.7]} 7... Nbd7 {[%clk 0:02:53.7]} 8. Be3 {[%clk 0:02:50.8]}
8... Qc7 {[%clk 0:02:52.1]} 9. h3 {[%clk 0:02:49.2]} 9... e5 {[%clk 0:02:52]}
10. Re1 {[%clk 0:02:47.4]} 10... Re8 {[%clk 0:02:51.4]} 11. d5 {[%clk
0:02:27.9]} 11... cxd5 {[%clk 0:02:47.7]} 12. Nxd5 {[%clk 0:02:26.6]} 12... Nxd5
{[%clk 0:02:47.5]} 13. exd5 {[%clk 0:02:26]} 13... Nf6 {[%clk 0:02:36.7]} 14. c4
{[%clk 0:02:22.5]} 14... b6 {[%clk 0:02:35.9]} 15. Nd2 {[%clk 0:02:18.8]} 15...
Bb7 {[%clk 0:02:29.2]} 16. b4 {[%clk 0:02:09.4]} 16... a5 {[%clk 0:02:28.3]} 17.
bxa5 {[%clk 0:02:07.3]} 17... bxa5 {[%clk 0:02:29.2]} 18. Rb1 {[%clk 0:02:04.5]}
18... Ba6 {[%clk 0:02:27.1]} 19. Bb6 {[%clk 0:02:01.4]} 19... Qe7 {[%clk
0:02:20.9]} 20. Bxa5 {[%clk 0:02:00.9]} 20... e4 {[%clk 0:02:17.2]} 21. Rb3
{[%clk 0:01:52.3]} 21... Nd7 {[%clk 0:02:15.9]} 22. Bb4 {[%clk 0:01:50.3]} 22...
f5 {[%clk 0:02:10.9]} 23. Qc1 {[%clk 0:01:28.1]} 23... Rab8 {[%clk 0:02:08.8]}
24. Qa3 {[%clk 0:01:26.5]} 24... Be5 {[%clk 0:02:05]} 25. Reb1 {[%clk
0:01:19.6]} 25... h5 {[%clk 0:01:52.9]} 26. Bf1 {[%clk 0:01:10.7]} 26... h4
{[%clk 0:01:51.5]} 27. Qa2 {[%clk 0:01:02.4]} 27... Qg5 {[%clk 0:01:50.1]} 28.
c5 {[%clk 0:00:57]} 28... Bxf1 {[%clk 0:01:34.5]} 29. Nxf1 {[%clk 0:00:55.5]}
29... dxc5 {[%clk 0:01:34.4]} 30. Bd2 {[%clk 0:00:46.3]} 30... Qf6 {[%clk
0:01:32.7]} 31. Rxb8 {[%clk 0:00:41.1]} 31... Bxb8 {[%clk 0:01:29.7]} 32. d6+
{[%clk 0:00:34.6]} 32... Qe6 {[%clk 0:01:10.4]} 33. Qxe6+ {[%clk 0:00:27.2]}
33... Rxe6 {[%clk 0:01:11.3]} 34. Rb7 {[%clk 0:00:21.7]} 34... Rxd6 {[%clk
0:01:05.7]} 35. Bf4 {[%clk 0:00:21.5]} 35... Rb6 {[%clk 0:01:02.3]} 36. Rxb6
{[%clk 0:00:20.8]} 36... Nxb6 {[%clk 0:01:01.2]} 37. Bxb8 {[%clk 0:00:21.2]}
37... Nxa4 {[%clk 0:01:01.6]} 38. Ne3 {[%clk 0:00:20.7]} 38... Kf7 {[%clk
0:01:00]} 39. Kf1 {[%clk 0:00:18.8]} 39... Ke6 {[%clk 0:01:00.2]} 40. Ke2 {[%clk
0:00:18.7]} 40... g5 {[%clk 0:01:00.1]} 41. Bc7 {[%clk 0:00:16.9]} 41... f4
{[%clk 0:00:57.7]} 42. Ng4 {[%clk 0:00:15.8]} 42... Nc3+ {[%clk 0:00:57.6]} 43.
Kd2 {[%clk 0:00:15.2]} 43... Nd5 {[%clk 0:00:57.3]} 44. Bd8 {[%clk 0:00:14.5]}
44... Kf5 {[%clk 0:00:57.1]} 45. Kc2 {[%clk 0:00:12.9]} 45... f3 {[%clk
0:00:54.7]} 46. gxf3 {[%clk 0:00:12.3]} 46... exf3 {[%clk 0:00:50.4]} 47. Kd2
{[%clk 0:00:10.9]} 47... Nf4 {[%clk 0:00:49.8]} 48. Ne3+ {[%clk 0:00:09.8]}
48... Kg6 {[%clk 0:00:48.3]} 49. Nf1 {[%clk 0:00:06.3]} 49... Nxh3 {[%clk
0:00:47.8]} 50. Ke3 {[%clk 0:00:06]} 50... Kf5 {[%clk 0:00:43.2]} 51. Nh2 {[%clk
0:00:04.7]} 51... Nf4 {[%clk 0:00:39.7]} 52. Nxf3 {[%clk 0:00:04.3]} 52... Ne6
{[%clk 0:00:38.1]} 53. Be7 {[%clk 0:00:04.2]} 53... h3 {[%clk 0:00:37.7]} 54.
Nh2 {[%clk 0:00:03.7]} 54... g4 {[%clk 0:00:37.5]} 55. Bd6 {[%clk 0:00:01.4]}
55... c4 {[%clk 0:00:37.3]} 0-1

[Event "*** SCC Grand Prix: Titled Tuesday Blitz"]
[Site "Chess.com"]
[Date "2020.10.13"]
[Round "8"]
[White "Bulldog167"]
[Black "Smirnov_Pavel"]
[Result "0-1"]
[WhiteElo "2758"]
[BlackElo "2849"]
[TimeControl "180+1"]
[EndTime "11:34:19 PDT"]
[Termination "Smirnov_Pavel won by resignation"]

1. d4 {[%clk 0:03:00.9]} 1... Nf6 {[%clk 0:02:59.4]} 2. c4 {[%clk 0:03:01.3]}
2... e6 {[%clk 0:03:00]} 3. Nf3 {[%clk 0:03:01.3]} 3... d5 {[%clk 0:02:59.9]} 4.
Nc3 {[%clk 0:03:01.8]} 4... c6 {[%clk 0:03:00.1]} 5. Bg5 {[%clk 0:03:02]} 5...
h6 {[%clk 0:02:59.7]} 6. Bxf6 {[%clk 0:03:02.6]} 6... Qxf6 {[%clk 0:03:00]} 7.
Qc2 {[%clk 0:03:03.5]} 7... dxc4 {[%clk 0:02:54.8]} 8. e3 {[%clk 0:03:03.3]}
8... b5 {[%clk 0:02:48.8]} 9. a4 {[%clk 0:03:03.1]} 9... Bb7 {[%clk 0:02:45.8]}
10. axb5 {[%clk 0:03:02.9]} 10... cxb5 {[%clk 0:02:45.8]} 11. Nxb5 {[%clk
0:03:03.8]} 11... Bb4+ {[%clk 0:02:45.5]} 12. Nc3 {[%clk 0:03:03.7]} 12... O-O
{[%clk 0:02:45.4]} 13. Be2 {[%clk 0:03:02.9]} 13... Nd7 {[%clk 0:02:44]} 14. O-O
{[%clk 0:03:03.1]} 14... Rfc8 {[%clk 0:02:42.8]} 15. Rfc1 {[%clk 0:02:57.2]}
15... Qe7 {[%clk 0:02:36.9]} 16. Nd2 {[%clk 0:02:54.7]} 16... Nb6 {[%clk
0:02:36.1]} 17. Bf3 {[%clk 0:02:54.4]} 17... Bxf3 {[%clk 0:02:34.9]} 18. Nxf3
{[%clk 0:02:55.3]} 18... Qb7 {[%clk 0:02:31.7]} 19. Ne5 {[%clk 0:02:29.6]} 19...
a5 {[%clk 0:02:28]} 20. Qe4 {[%clk 0:02:24.6]} 20... Qxe4 {[%clk 0:02:13.8]} 21.
Nxe4 {[%clk 0:02:25.5]} 21... Rab8 {[%clk 0:02:12.9]} 22. Rc2 {[%clk 0:02:23]}
22... f6 {[%clk 0:02:05.9]} 23. Nf3 {[%clk 0:02:22.2]} 23... Nd5 {[%clk
0:02:04.9]} 24. Rac1 {[%clk 0:02:17.2]} 24... f5 {[%clk 0:02:02.5]} 25. Ned2
{[%clk 0:01:33.4]} 25... c3 {[%clk 0:01:52.8]} 26. Nb1 {[%clk 0:01:33.3]} 26...
a4 {[%clk 0:01:53]} 27. Kf1 {[%clk 0:01:02.9]} 27... Kh7 {[%clk 0:00:29.5]} 28.
bxc3 {[%clk 0:00:56.3]} 28... Bd6 {[%clk 0:00:27.6]} 29. c4 {[%clk 0:00:56.6]}
29... a3 {[%clk 0:00:18.4]} 30. Ra2 {[%clk 0:00:19.8]} 30... Rb2 {[%clk
0:00:17.4]} 31. Rxb2 {[%clk 0:00:16.2]} 31... axb2 {[%clk 0:00:17.5]} 32. Rc2
{[%clk 0:00:16.8]} 32... Nb4 {[%clk 0:00:17.8]} 33. Rxb2 {[%clk 0:00:15.9]}
33... Rxc4 {[%clk 0:00:18.3]} 34. Nbd2 {[%clk 0:00:15.2]} 34... Rc1+ {[%clk
0:00:17.8]} 35. Ke2 {[%clk 0:00:15.6]} 35... Ra1 {[%clk 0:00:17.1]} 36. Ne1
{[%clk 0:00:14.6]} 36... Rxe1+ {[%clk 0:00:15.6]} 37. Kxe1 {[%clk 0:00:12.6]}
37... Nd3+ {[%clk 0:00:15.6]} 38. Kd1 {[%clk 0:00:12.2]} 38... Nxb2+ {[%clk
0:00:16.2]} 39. Kc2 {[%clk 0:00:12.9]} 39... Na4 {[%clk 0:00:16.8]} 40. Nc4
{[%clk 0:00:12.9]} 40... Bc7 {[%clk 0:00:16.5]} 41. Kd3 {[%clk 0:00:11.1]} 41...
Nb6 {[%clk 0:00:16.2]} 42. Nd2 {[%clk 0:00:12]} 42... Kg8 {[%clk 0:00:15.7]} 43.
h3 {[%clk 0:00:12.3]} 43... Kf7 {[%clk 0:00:16.2]} 44. f4 {[%clk 0:00:12.8]}
44... Kf6 {[%clk 0:00:15.9]} 45. g4 {[%clk 0:00:13.2]} 45... g5 {[%clk
0:00:15.6]} 46. Nf3 {[%clk 0:00:12.9]} 46... gxf4 {[%clk 0:00:15]} 47. e4 {[%clk
0:00:11.5]} 47... fxe4+ {[%clk 0:00:14.2]} 48. Kxe4 {[%clk 0:00:12.4]} 48... Nd5
{[%clk 0:00:14.3]} 49. h4 {[%clk 0:00:13.3]} 49... Nc3+ {[%clk 0:00:13.4]} 50.
Kd3 {[%clk 0:00:13.5]} 50... Nd5 {[%clk 0:00:13.9]} 51. Ke4 {[%clk 0:00:14.4]}
51... Bd6 {[%clk 0:00:14]} 52. Kd3 {[%clk 0:00:13.7]} 52... Kg6 {[%clk
0:00:12.8]} 53. Ke4 {[%clk 0:00:14.6]} 53... Nf6+ {[%clk 0:00:12.2]} 0-1

[Event "*** SCC Grand Prix: Titled Tuesday Blitz"]
[Site "Chess.com"]
[Date "2020.10.13"]
[Round "8"]
[White "vaishali2001"]
[Black "Lagmantr"]
[Result "1-0"]
[WhiteElo "2596"]
[BlackElo "2718"]
[TimeControl "180+1"]
[EndTime "11:34:19 PDT"]
[Termination "vaishali2001 won by checkmate"]

1. d4 {[%clk 0:02:58.3]} 1... Nf6 {[%clk 0:02:59.5]} 2. Bf4 {[%clk 0:02:58.1]}
2... c5 {[%clk 0:02:56.2]} 3. e3 {[%clk 0:02:48.2]} 3... e6 {[%clk 0:02:51.7]}
4. Nf3 {[%clk 0:02:41.7]} 4... Be7 {[%clk 0:02:49.7]} 5. Nbd2 {[%clk 0:02:23.2]}
5... O-O {[%clk 0:02:49]} 6. Bd3 {[%clk 0:02:22.4]} 6... b6 {[%clk 0:02:48.8]}
7. O-O {[%clk 0:02:18.2]} 7... Bb7 {[%clk 0:02:48.4]} 8. h3 {[%clk 0:02:18.4]}
8... d5 {[%clk 0:02:46.6]} 9. c3 {[%clk 0:02:11.8]} 9... Nbd7 {[%clk 0:02:44.1]}
10. Ne5 {[%clk 0:02:12.1]} 10... Nxe5 {[%clk 0:02:44.1]} 11. Bxe5 {[%clk
0:02:09.1]} 11... Ne4 {[%clk 0:02:29]} 12. Nxe4 {[%clk 0:01:32.3]} 12... dxe4
{[%clk 0:02:26.7]} 13. Bc4 {[%clk 0:01:28.7]} 13... Bd5 {[%clk 0:02:25.4]} 14.
Qe2 {[%clk 0:01:26]} 14... Bf6 {[%clk 0:02:17.5]} 15. Bxd5 {[%clk 0:01:09.5]}
15... exd5 {[%clk 0:02:12.7]} 16. Bxf6 {[%clk 0:01:08]} 16... Qxf6 {[%clk
0:02:12.9]} 17. Qb5 {[%clk 0:00:58.5]} 17... a6 {[%clk 0:02:02.6]} 18. Qb3
{[%clk 0:00:42.9]} 18... c4 {[%clk 0:02:02.6]} 19. Qa3 {[%clk 0:00:42.3]} 19...
Qh6 {[%clk 0:01:58.1]} 20. b3 {[%clk 0:00:41.4]} 20... b5 {[%clk 0:01:37]} 21.
bxc4 {[%clk 0:00:34.4]} 21... dxc4 {[%clk 0:01:36]} 22. Qe7 {[%clk 0:00:28.1]}
22... Rae8 {[%clk 0:01:31.9]} 23. Qc7 {[%clk 0:00:22.2]} 23... f5 {[%clk
0:01:31.9]} 24. a4 {[%clk 0:00:22.2]} 24... f4 {[%clk 0:01:19.6]} 25. exf4
{[%clk 0:00:20.8]} 25... Rxf4 {[%clk 0:00:44.2]} 26. axb5 {[%clk 0:00:20.1]}
26... axb5 {[%clk 0:00:45.1]} 27. Ra7 {[%clk 0:00:16.2]} 27... Ref8 {[%clk
0:00:44.1]} 28. Qe5 {[%clk 0:00:11.2]} 28... b4 {[%clk 0:00:32.3]} 29. cxb4
{[%clk 0:00:09.7]} 29... c3 {[%clk 0:00:32.8]} 30. Rc7 {[%clk 0:00:09.8]} 30...
R8f5 {[%clk 0:00:17.1]} 31. Rc8+ {[%clk 0:00:08.3]} 31... Rf8 {[%clk 0:00:17.4]}
32. Rxc3 {[%clk 0:00:08]} 32... Qg6 {[%clk 0:00:12.7]} 33. Rg3 {[%clk
0:00:05.1]} 33... Qh6 {[%clk 0:00:12]} 34. b5 {[%clk 0:00:04.2]} 34... R8f7
{[%clk 0:00:06.9]} 35. Qb8+ {[%clk 0:00:03.2]} 35... Rf8 {[%clk 0:00:06.9]} 36.
Qe5 {[%clk 0:00:04.1]} 36... R8f7 {[%clk 0:00:07.2]} 37. d5 {[%clk 0:00:04]}
37... Qb6 {[%clk 0:00:05.7]} 38. Qe8+ {[%clk 0:00:03.1]} 38... Rf8 {[%clk
0:00:05.8]} 39. Qe6+ {[%clk 0:00:03.4]} 39... Qxe6 {[%clk 0:00:04.8]} 40. dxe6
{[%clk 0:00:04.3]} 40... Re8 {[%clk 0:00:05.2]} 41. b6 {[%clk 0:00:03.4]} 41...
Rxe6 {[%clk 0:00:05.2]} 42. Rb1 {[%clk 0:00:03.8]} 42... Rf8 {[%clk 0:00:05.4]}
43. b7 {[%clk 0:00:04]} 43... Rb8 {[%clk 0:00:05.2]} 44. Rc3 {[%clk 0:00:04.7]}
44... Ree8 {[%clk 0:00:05.4]} 45. Rc7 {[%clk 0:00:05.2]} 45... Rf8 {[%clk
0:00:03.8]} 46. Rd1 {[%clk 0:00:05.6]} 46... g6 {[%clk 0:00:04.4]} 47. Rdd7
{[%clk 0:00:05.7]} 47... e3 {[%clk 0:00:03.8]} 48. Rg7+ {[%clk 0:00:06]} 48...
Kh8 {[%clk 0:00:04.5]} 49. Rxh7+ {[%clk 0:00:06.9]} 49... Kg8 {[%clk 0:00:05.4]}
50. Rcg7# {[%clk 0:00:07.6]} 1-0

[Event "*** SCC Grand Prix: Titled Tuesday Blitz"]
[Site "Chess.com"]
[Date "2020.10.13"]
[Round "8"]
[White "W_Amadeus"]
[Black "valeriocarnicelli"]
[Result "1/2-1/2"]
[WhiteElo "2698"]
[BlackElo "2567"]
[TimeControl "180+1"]
[EndTime "11:34:19 PDT"]
[Termination "Game drawn by repetition"]

1. e4 {[%clk 0:03:00.9]} 1... e5 {[%clk 0:02:59.7]} 2. Nf3 {[%clk 0:03:00]} 2...
Nc6 {[%clk 0:03:00.1]} 3. Bb5 {[%clk 0:03:00.4]} 3... g6 {[%clk 0:02:59.7]} 4.
d4 {[%clk 0:02:44.3]} 4... exd4 {[%clk 0:02:59.3]} 5. Bg5 {[%clk 0:02:43.6]}
5... Be7 {[%clk 0:02:58.7]} 6. Bxe7 {[%clk 0:02:43.3]} 6... Qxe7 {[%clk
0:02:59.6]} 7. O-O {[%clk 0:02:43.1]} 7... Nf6 {[%clk 0:02:57]} 8. Re1 {[%clk
0:02:22.7]} 8... O-O {[%clk 0:02:53.2]} 9. e5 {[%clk 0:02:05.4]} 9... Nh5 {[%clk
0:02:53.3]} 10. c3 {[%clk 0:01:49.3]} 10... a6 {[%clk 0:02:41.8]} 11. Bf1 {[%clk
0:01:32.7]} 11... d3 {[%clk 0:02:29.6]} 12. Bxd3 {[%clk 0:01:28.7]} 12... d6
{[%clk 0:02:27]} 13. exd6 {[%clk 0:01:27.3]} 13... Qxd6 {[%clk 0:02:27.9]} 14.
Na3 {[%clk 0:01:22]} 14... Bg4 {[%clk 0:02:24.4]} 15. Be4 {[%clk 0:01:15.5]}
15... Qxd1 {[%clk 0:02:19.6]} 16. Raxd1 {[%clk 0:01:14.8]} 16... Nf6 {[%clk
0:02:18.9]} 17. Bxc6 {[%clk 0:01:07.1]} 17... bxc6 {[%clk 0:02:19.8]} 18. Nc4
{[%clk 0:01:02.2]} 18... Bxf3 {[%clk 0:02:17.4]} 19. gxf3 {[%clk 0:01:03.1]}
19... Rfe8 {[%clk 0:02:12.9]} 20. Na5 {[%clk 0:00:51.3]} 20... Rab8 {[%clk
0:01:52.1]} 21. Rxe8+ {[%clk 0:00:44.9]} 21... Rxe8 {[%clk 0:01:53]} 22. Nxc6
{[%clk 0:00:36.5]} 22... Re2 {[%clk 0:01:52.3]} 23. Rb1 {[%clk 0:00:36.6]} 23...
Nd5 {[%clk 0:01:46.8]} 24. Kf1 {[%clk 0:00:29.9]} 24... Nf4 {[%clk 0:01:45.3]}
25. Nd4 {[%clk 0:00:24.9]} 25... Rd2 {[%clk 0:01:45.3]} 26. Nb3 {[%clk
0:00:22.7]} 26... Rc2 {[%clk 0:01:44]} 27. Nd4 {[%clk 0:00:17.4]} 27... Rd2
{[%clk 0:01:44]} 28. Nb3 {[%clk 0:00:16.9]} 28... Rd5 {[%clk 0:01:42.6]} 29. Nd4
{[%clk 0:00:08.7]} 29... c5 {[%clk 0:01:41.3]} 30. Ne2 {[%clk 0:00:08.6]} 30...
Nxe2 {[%clk 0:01:28.4]} 31. Kxe2 {[%clk 0:00:09.5]} 31... Rh5 {[%clk 0:01:28.8]}
32. Rd1 {[%clk 0:00:08.6]} 32... c4 {[%clk 0:01:07.7]} 33. b4 {[%clk 0:00:08.6]}
33... Kg7 {[%clk 0:00:55.2]} 34. a4 {[%clk 0:00:06.4]} 34... Rxh2 {[%clk
0:00:54.4]} 35. Rd6 {[%clk 0:00:05.5]} 35... Rh1 {[%clk 0:00:53.9]} 36. Rxa6
{[%clk 0:00:05.5]} 36... h5 {[%clk 0:00:48.6]} 37. f4 {[%clk 0:00:03.5]} 37...
h4 {[%clk 0:00:47.9]} 38. b5 {[%clk 0:00:04.1]} 38... Rb1 {[%clk 0:00:46]} 39.
Kf3 {[%clk 0:00:03.9]} 39... Rb3 {[%clk 0:00:45.4]} 40. b6 {[%clk 0:00:02.4]}
40... Rxc3+ {[%clk 0:00:43.8]} 41. Kg2 {[%clk 0:00:02.9]} 41... h3+ {[%clk
0:00:43.2]} 42. Kh2 {[%clk 0:00:01.7]} 42... Rb3 {[%clk 0:00:44.1]} 43. a5
{[%clk 0:00:02.1]} 43... c3 {[%clk 0:00:44.5]} 44. Ra7 {[%clk 0:00:02.7]} 44...
Rb5 {[%clk 0:00:40.1]} 45. Rc7 {[%clk 0:00:02.8]} 45... Rxa5 {[%clk 0:00:40.3]}
46. Rxc3 {[%clk 0:00:02.8]} 46... Rb5 {[%clk 0:00:40.8]} 47. Kxh3 {[%clk
0:00:02.9]} 47... Rxb6 {[%clk 0:00:40.6]} 48. Kg3 {[%clk 0:00:03.5]} 48... Kf6
{[%clk 0:00:40.6]} 49. Re3 {[%clk 0:00:03.9]} 49... Rb4 {[%clk 0:00:40.6]} 50.
Re5 {[%clk 0:00:03.9]} 50... Rc4 {[%clk 0:00:40.1]} 51. f3 {[%clk 0:00:04.3]}
51... Kg7 {[%clk 0:00:40.2]} 52. Ra5 {[%clk 0:00:04.6]} 52... f6 {[%clk
0:00:40.1]} 53. Ra7+ {[%clk 0:00:04.5]} 53... Kh6 {[%clk 0:00:39.1]} 54. Ra6
{[%clk 0:00:05]} 54... Kg7 {[%clk 0:00:36.1]} 55. Ra7+ {[%clk 0:00:05.2]} 55...
Kf8 {[%clk 0:00:36.5]} 56. Ra6 {[%clk 0:00:05]} 56... Ke7 {[%clk 0:00:36.5]} 57.
Ra7+ {[%clk 0:00:05.4]} 57... Ke6 {[%clk 0:00:36.7]} 58. Ra6+ {[%clk 0:00:05.4]}
58... Ke7 {[%clk 0:00:33]} 59. Ra7+ {[%clk 0:00:05.2]} 59... Kf8 {[%clk
0:00:30.4]} 60. Ra8+ {[%clk 0:00:04.7]} 60... Kg7 {[%clk 0:00:30.9]} 61. Ra7+
{[%clk 0:00:04.9]} 1/2-1/2